[Event "*** Titled Tuesday 3|2 Blitz"]
[Site "Chess.com"]
[Date "2015.02.24"]
[Round "2"]
[White "DanielNaroditsky"]
[Black "igorkovalenko"]
[Result "0-1"]
[WhiteElo "2564"]
[BlackElo "2483"]
[TimeControl "180+2"]
[EndTime "11:21:43 PST"]
[Termination "igorkovalenko won by resignation"]

1. Nf3 {[%clk 0:03:00]} 1... Nf6 {[%clk 0:02:58.9]} 2. c4 {[%clk 0:02:58.7]}
2... c6 {[%clk 0:02:58.7]} 3. e3 {[%clk 0:02:56.9]} 3... d5 {[%clk 0:03:00.6]}
4. Nc3 {[%clk 0:02:58.6]} 4... e6 {[%clk 0:03:00.1]} 5. b3 {[%clk 0:02:58.8]}
5... Nbd7 {[%clk 0:02:58.5]} 6. Bb2 {[%clk 0:03:00.1]} 6... b6 {[%clk
0:02:59.9]} 7. Qc2 {[%clk 0:03:00.8]} 7... Bb7 {[%clk 0:03:01.5]} 8. Be2 {[%clk
0:03:01.3]} 8... Rc8 {[%clk 0:03:03]} 9. d4 {[%clk 0:02:59]} 9... Bb4 {[%clk
0:03:03.7]} 10. O-O {[%clk 0:02:59.8]} 10... O-O {[%clk 0:03:04.6]} 11. a3
{[%clk 0:02:57.2]} 11... Bxc3 {[%clk 0:03:05.7]} 12. Bxc3 {[%clk 0:02:57.9]}
12... c5 {[%clk 0:03:06.2]} 13. dxc5 {[%clk 0:02:57.9]} 13... Nxc5 {[%clk
0:03:05.7]} 14. Rad1 {[%clk 0:02:52.2]} 14... Qe7 {[%clk 0:02:59.5]} 15. Ng5
{[%clk 0:02:37.6]} 15... Nce4 {[%clk 0:02:56.6]} 16. Nxe4 {[%clk 0:02:30.2]}
16... Nxe4 {[%clk 0:02:58.5]} 17. Bb4 {[%clk 0:02:31.8]} 17... Nc5 {[%clk
0:02:59.8]} 18. cxd5 {[%clk 0:02:19.9]} 18... Bxd5 {[%clk 0:03:00.4]} 19. Qb2
{[%clk 0:02:14.6]} 19... Qg5 {[%clk 0:02:54.9]} 20. g3 {[%clk 0:02:05.9]} 20...
Rfd8 {[%clk 0:02:55.6]} 21. Bxc5 {[%clk 0:02:03]} 21... bxc5 {[%clk 0:02:56.8]}
22. Qc3 {[%clk 0:01:58.9]} 22... Qg6 {[%clk 0:02:49]} 23. f3 {[%clk 0:01:57.5]}
23... Qf6 {[%clk 0:02:46.2]} 24. Rc1 {[%clk 0:01:54.2]} 24... Qxc3 {[%clk
0:02:44.6]} 25. Rxc3 {[%clk 0:01:55.1]} 25... Rb8 {[%clk 0:02:46.2]} 26. Rxc5
{[%clk 0:01:46.6]} 26... Rxb3 {[%clk 0:02:40.7]} 27. e4 {[%clk 0:01:48]} 27...
Bb7 {[%clk 0:02:41.5]} 28. Rc7 {[%clk 0:01:48.9]} 28... Rb2 {[%clk 0:02:40.6]}
29. Rd1 {[%clk 0:01:39.5]} 29... Rxd1+ {[%clk 0:02:40.7]} 30. Bxd1 {[%clk
0:01:41.2]} 30... Kf8 {[%clk 0:02:38.7]} 31. Ba4 {[%clk 0:01:40.3]} 31... g5
{[%clk 0:02:32.6]} 32. h3 {[%clk 0:01:34.6]} 32... h5 {[%clk 0:02:33.1]} 33. g4
{[%clk 0:01:36.1]} 33... h4 {[%clk 0:02:33.6]} 34. Rd7 {[%clk 0:01:33.6]} 34...
a5 {[%clk 0:02:31.1]} 35. Rd8+ {[%clk 0:01:33.2]} 35... Ke7 {[%clk 0:02:31.7]}
36. Rd7+ {[%clk 0:01:31.2]} 36... Kf6 {[%clk 0:02:32.9]} 37. Rc7 {[%clk
0:01:32]} 37... Ba6 {[%clk 0:02:31.5]} 38. Be8 {[%clk 0:01:31.8]} 38... Ke5
{[%clk 0:02:32.1]} 39. Rxf7 {[%clk 0:01:25.9]} 39... Ra2 {[%clk 0:02:27]} 40. a4
{[%clk 0:01:26.7]} 40... Ra1+ {[%clk 0:02:24.1]} 41. Kf2 {[%clk 0:01:27.4]}
41... Bf1 {[%clk 0:02:24]} 42. f4+ {[%clk 0:01:09.1]} 42... gxf4 {[%clk
0:02:24.5]} 43. g5 {[%clk 0:01:03.8]} 43... Bxh3 {[%clk 0:02:24.7]} 44. g6
{[%clk 0:01:05.3]} 44... Rf1+ {[%clk 0:02:23.1]} 45. Ke2 {[%clk 0:01:06.8]}
45... Rg1 {[%clk 0:02:24.7]} 46. g7 {[%clk 0:01:07.5]} 46... Rg2+ {[%clk
0:02:24.8]} 47. Kd3 {[%clk 0:01:07.2]} 47... Rg3+ {[%clk 0:02:24.8]} 48. Ke2
{[%clk 0:01:07.6]} 48... Bg2 {[%clk 0:02:18.3]} 49. Ra7 {[%clk 0:00:56.2]} 49...
h3 {[%clk 0:02:17.4]} 50. Rxa5+ {[%clk 0:00:43.4]} 50... Kd4 {[%clk 0:02:18.1]}
51. Kf2 {[%clk 0:00:37.4]} 51... h2 {[%clk 0:02:15]} 52. Rh5 {[%clk 0:00:37.5]}
52... h1=Q {[%clk 0:02:15]} 0-1

[Event "*** Titled Tuesday 3|2 Blitz"]
[Site "Chess.com"]
[Date "2015.02.24"]
[Round "2"]
[White "bsmail"]
[Black "AUSSIE_PINOY"]
[Result "0-1"]
[WhiteElo "2102"]
[BlackElo "2357"]
[TimeControl "180+2"]
[EndTime "11:22:15 PST"]
[Termination "AUSSIE_PINOY won by resignation"]

1. d4 {[%clk 0:03:00]} 1... d5 {[%clk 0:02:58.1]} 2. c4 {[%clk 0:03:00.2]} 2...
e5 {[%clk 0:02:59]} 3. dxe5 {[%clk 0:03:01.1]} 3... d4 {[%clk 0:03:00.1]} 4. Nf3
{[%clk 0:03:02]} 4... Nc6 {[%clk 0:03:01.2]} 5. Bg5 {[%clk 0:03:02.7]} 5... Qd7
{[%clk 0:02:59.7]} 6. Nbd2 {[%clk 0:03:01.3]} 6... h6 {[%clk 0:03:00.6]} 7. Bh4
{[%clk 0:02:58.5]} 7... Nge7 {[%clk 0:03:00.4]} 8. Bxe7 {[%clk 0:02:58.4]} 8...
Bxe7 {[%clk 0:03:00.8]} 9. g3 {[%clk 0:02:59.3]} 9... O-O {[%clk 0:03:01.2]} 10.
Bg2 {[%clk 0:03:00.5]} 10... Rd8 {[%clk 0:03:02.1]} 11. O-O {[%clk 0:03:01.2]}
11... Qf5 {[%clk 0:02:56.1]} 12. a3 {[%clk 0:02:54.6]} 12... a5 {[%clk
0:02:56.1]} 13. Qb1 {[%clk 0:02:49.1]} 13... Qh5 {[%clk 0:02:55.1]} 14. Qc2
{[%clk 0:02:19.5]} 14... a4 {[%clk 0:02:43.2]} 15. Rad1 {[%clk 0:02:01.6]} 15...
Ra5 {[%clk 0:02:35.4]} 16. Rfe1 {[%clk 0:01:45.4]} 16... Bf5 {[%clk 0:02:32.2]}
17. Qc1 {[%clk 0:01:42.6]} 17... Bh3 {[%clk 0:02:26.8]} 18. Bxh3 {[%clk
0:01:29]} 18... Qxh3 {[%clk 0:02:26.9]} 19. Nf1 {[%clk 0:01:30]} 19... Qg4
{[%clk 0:02:11.4]} 20. Qf4 {[%clk 0:01:22.9]} 20... h5 {[%clk 0:01:09]} 21. Kg2
{[%clk 0:01:08.4]} 21... Rc5 {[%clk 0:01:02.9]} 22. N1d2 {[%clk 0:00:59.6]}
22... Qe6 {[%clk 0:00:58]} 23. h4 {[%clk 0:00:51.3]} 23... Bf8 {[%clk
0:00:37.2]} 24. Rc1 {[%clk 0:00:48.3]} 24... Be7 {[%clk 0:00:28.3]} 25. Ne4
{[%clk 0:00:48.5]} 25... Rxc4 {[%clk 0:00:25.1]} 26. Rxc4 {[%clk 0:00:49.5]}
26... Qxc4 {[%clk 0:00:26.1]} 27. Neg5 {[%clk 0:00:44.9]} 27... Bxg5 {[%clk
0:00:27.1]} 28. Qxg5 {[%clk 0:00:38.6]} 28... g6 {[%clk 0:00:25.5]} 29. Qh6
{[%clk 0:00:37.6]} 29... Qd5 {[%clk 0:00:22.5]} 30. Kh2 {[%clk 0:00:36.2]} 30...
Nxe5 {[%clk 0:00:20.3]} 31. Ng5 {[%clk 0:00:36.5]} 31... Ng4+ {[%clk 0:00:21]}
0-1

[Event "*** Titled Tuesday 3|2 Blitz"]
[Site "Chess.com"]
[Date "2015.02.24"]
[Round "2"]
[White "ilmago"]
[Black "CraiggoryC"]
[Result "0-1"]
[WhiteElo "1864"]
[BlackElo "1988"]
[TimeControl "180+2"]
[EndTime "11:22:19 PST"]
[Termination "CraiggoryC won by resignation"]

1. e4 {[%clk 0:03:00]} 1... e6 {[%clk 0:02:58.6]} 2. d4 {[%clk 0:03:00]} 2... d5
{[%clk 0:02:59.8]} 3. e5 {[%clk 0:03:00.9]} 3... c5 {[%clk 0:03:00.7]} 4. c3
{[%clk 0:03:02.1]} 4... Qb6 {[%clk 0:03:02.3]} 5. Nf3 {[%clk 0:03:01.7]} 5...
Nc6 {[%clk 0:03:03.8]} 6. a3 {[%clk 0:03:00.9]} 6... Nh6 {[%clk 0:03:04.4]} 7.
b4 {[%clk 0:02:59.9]} 7... cxd4 {[%clk 0:03:05.4]} 8. cxd4 {[%clk 0:03:00.6]}
8... Nf5 {[%clk 0:03:06.4]} 9. Bb2 {[%clk 0:02:56.6]} 9... Bd7 {[%clk
0:03:06.9]} 10. Qd2 {[%clk 0:02:50.3]} 10... Be7 {[%clk 0:02:49.3]} 11. g4
{[%clk 0:02:48.7]} 11... Nh4 {[%clk 0:02:48.7]} 12. Nxh4 {[%clk 0:02:48.8]}
12... Bxh4 {[%clk 0:02:49.7]} 13. Be2 {[%clk 0:02:48.2]} 13... Nxe5 {[%clk
0:02:03.4]} 14. dxe5 {[%clk 0:02:36.8]} 14... Qxf2+ {[%clk 0:02:02.3]} 15. Kd1
{[%clk 0:02:38.1]} 15... Rc8 {[%clk 0:00:52.7]} 16. Nc3 {[%clk 0:02:36.7]} 16...
d4 {[%clk 0:00:49.6]} 17. Nb5 {[%clk 0:02:37]} 17... O-O {[%clk 0:00:32.9]} 18.
Bxd4 {[%clk 0:02:36.5]} 18... Qg2 {[%clk 0:00:25.6]} 19. Rf1 {[%clk 0:02:23.5]}
19... a6 {[%clk 0:00:21.4]} 20. Nc3 {[%clk 0:02:05.9]} 20... h6 {[%clk
0:00:21.2]} 21. Kc2 {[%clk 0:01:57.9]} 21... Ba4+ {[%clk 0:00:21.1]} 22. Kb2
{[%clk 0:01:58.5]} 22... Bg5 {[%clk 0:00:21.3]} 23. Qd3 {[%clk 0:01:54.3]} 23...
Bb5 {[%clk 0:00:20.6]} 24. Nxb5 {[%clk 0:01:53.7]} 24... axb5 {[%clk 0:00:21.7]}
25. Rac1 {[%clk 0:01:44.8]} 25... Bxc1+ {[%clk 0:00:21.4]} 26. Rxc1 {[%clk
0:01:43.3]} 26... Rxc1 {[%clk 0:00:21.7]} 27. Kxc1 {[%clk 0:01:44.1]} 27... Rc8+
{[%clk 0:00:21.9]} 28. Kd2 {[%clk 0:01:43.9]} 28... Qxh2 {[%clk 0:00:20.7]} 29.
Qxb5 {[%clk 0:01:43.2]} 29... Qf4+ {[%clk 0:00:21.6]} 30. Be3 {[%clk 0:01:41.7]}
30... Rd8+ {[%clk 0:00:22.3]} 31. Bd3 {[%clk 0:01:42.4]} 31... Qf1 {[%clk
0:00:22.1]} 32. Bb6 {[%clk 0:01:37.6]} 32... Qg2+ {[%clk 0:00:20.5]} 33. Kc3
{[%clk 0:01:36.6]} 33... Rc8+ {[%clk 0:00:21.6]} 34. Kb3 {[%clk 0:01:32.5]}
34... Qf3 {[%clk 0:00:22.4]} 35. Bc5 {[%clk 0:01:31]} 35... Qd5+ {[%clk
0:00:22.6]} 36. Bc4 {[%clk 0:01:25.9]} 36... Qf3+ {[%clk 0:00:22.9]} 37. Bd3
{[%clk 0:01:26.6]} 37... b6 {[%clk 0:00:24]} 38. Bd6 {[%clk 0:01:26.7]} 38...
Qd1+ {[%clk 0:00:21.9]} 39. Kb2 {[%clk 0:01:20.2]} 39... Qd2+ {[%clk 0:00:22.5]}
40. Kb3 {[%clk 0:01:21.1]} 40... Rc3+ {[%clk 0:00:20.7]} 41. Ka4 {[%clk
0:01:21]} 41... Qd1+ {[%clk 0:00:21.6]} 0-1

[Event "*** Titled Tuesday 3|2 Blitz"]
[Site "Chess.com"]
[Date "2015.02.24"]
[Round "2"]
[White "PauloCesarCosta"]
[Black "juniortay"]
[Result "1-0"]
[WhiteElo "2050"]
[BlackElo "2209"]
[TimeControl "180+2"]
[EndTime "11:22:20 PST"]
[Termination "PauloCesarCosta won by resignation"]

1. Nf3 {[%clk 0:03:00]} 1... Nf6 {[%clk 0:02:58.7]} 2. c4 {[%clk 0:02:59.5]}
2... g6 {[%clk 0:02:59.9]} 3. d4 {[%clk 0:02:59.9]} 3... Bg7 {[%clk 0:03:01.8]}
4. g3 {[%clk 0:03:01.4]} 4... d6 {[%clk 0:03:03.5]} 5. Bg2 {[%clk 0:03:02.7]}
5... c6 {[%clk 0:03:05.4]} 6. O-O {[%clk 0:03:03.5]} 6... O-O {[%clk 0:03:07.3]}
7. Nc3 {[%clk 0:03:03.8]} 7... Qa5 {[%clk 0:03:08.9]} 8. h3 {[%clk 0:02:50.3]}
8... Be6 {[%clk 0:03:05.5]} 9. Qb3 {[%clk 0:02:21]} 9... Qa6 {[%clk 0:02:55.9]}
10. d5 {[%clk 0:02:17.5]} 10... cxd5 {[%clk 0:02:48.9]} 11. cxd5 {[%clk
0:02:18.6]} 11... Bd7 {[%clk 0:02:50.4]} 12. e4 {[%clk 0:02:14]} 12... Be8
{[%clk 0:02:15.9]} 13. Be3 {[%clk 0:02:14.2]} 13... Nbd7 {[%clk 0:02:14.4]} 14.
Rfc1 {[%clk 0:02:09.4]} 14... Nc5 {[%clk 0:02:08.3]} 15. Bxc5 {[%clk 0:02:05.4]}
15... dxc5 {[%clk 0:02:10.2]} 16. e5 {[%clk 0:02:02.6]} 16... Nd7 {[%clk
0:02:10.9]} 17. Re1 {[%clk 0:01:59.2]} 17... Rc8 {[%clk 0:02:02.7]} 18. Rad1
{[%clk 0:01:59.2]} 18... c4 {[%clk 0:01:55.9]} 19. Qb4 {[%clk 0:01:56.2]} 19...
Nc5 {[%clk 0:01:56.6]} 20. Bf1 {[%clk 0:01:52.6]} 20... b5 {[%clk 0:01:54.4]}
21. d6 {[%clk 0:01:49.7]} 21... exd6 {[%clk 0:01:49.4]} 22. exd6 {[%clk
0:01:50.8]} 22... Qb7 {[%clk 0:01:50.6]} 23. Ne5 {[%clk 0:01:46.3]} 23... Bxe5
{[%clk 0:01:15.9]} 24. Rxe5 {[%clk 0:01:41.8]} 24... Ne6 {[%clk 0:00:49.1]} 25.
Bg2 {[%clk 0:01:35.4]} 25... Bc6 {[%clk 0:00:48.8]} 26. Bxc6 {[%clk 0:01:28.5]}
26... Qxc6 {[%clk 0:00:50.7]} 27. Nd5 {[%clk 0:01:24.1]} 27... Kg7 {[%clk
0:00:37.4]} 28. Qc3 {[%clk 0:01:20.3]} 28... Kh6 {[%clk 0:00:15.9]} 29. Qe3+
{[%clk 0:01:15.2]} 29... Kg7 {[%clk 0:00:16.4]} 30. Qf3 {[%clk 0:01:09.1]} 30...
Qxd6 {[%clk 0:00:11.3]} 31. Qf6+ {[%clk 0:01:06.3]} 31... Kg8 {[%clk 0:00:12.5]}
32. Ne7+ {[%clk 0:01:03]} 32... Qxe7 {[%clk 0:00:13.1]} 33. Qxe7 {[%clk
0:01:02.7]} 33... Rfe8 {[%clk 0:00:13.8]} 34. Qb7 {[%clk 0:00:55.1]} 1-0

[Event "*** Titled Tuesday 3|2 Blitz"]
[Site "Chess.com"]
[Date "2015.02.24"]
[Round "2"]
[White "raskolnnikov"]
[Black "BjarkeSahl"]
[Result "1-0"]
[WhiteElo "2278"]
[BlackElo "2123"]
[TimeControl "180+2"]
[EndTime "11:23:05 PST"]
[Termination "raskolnnikov won by resignation"]

1. d4 {[%clk 0:03:00]} 1... Nf6 {[%clk 0:02:55.1]} 2. c4 {[%clk 0:03:01]} 2...
c5 {[%clk 0:02:55.3]} 3. d5 {[%clk 0:03:02.1]} 3... d6 {[%clk 0:02:49.7]} 4. Nc3
{[%clk 0:03:01.8]} 4... g6 {[%clk 0:02:51.3]} 5. Nf3 {[%clk 0:03:02.6]} 5... Bg7
{[%clk 0:02:46.2]} 6. Bf4 {[%clk 0:03:03.3]} 6... O-O {[%clk 0:02:46.8]} 7. h3
{[%clk 0:03:04.3]} 7... a6 {[%clk 0:02:48.2]} 8. e3 {[%clk 0:03:04]} 8... Re8
{[%clk 0:02:48.1]} 9. a4 {[%clk 0:03:04.7]} 9... Qa5 {[%clk 0:02:32.2]} 10. Nd2
{[%clk 0:03:02.5]} 10... e6 {[%clk 0:02:24.9]} 11. Be2 {[%clk 0:02:59.3]} 11...
e5 {[%clk 0:02:20.7]} 12. Bg5 {[%clk 0:02:59.7]} 12... h6 {[%clk 0:02:20.5]} 13.
Bh4 {[%clk 0:03:00.3]} 13... g5 {[%clk 0:02:18]} 14. Bg3 {[%clk 0:03:01.1]}
14... Nbd7 {[%clk 0:02:18.4]} 15. h4 {[%clk 0:03:01.1]} 15... Nf8 {[%clk
0:02:19.1]} 16. hxg5 {[%clk 0:03:01.9]} 16... hxg5 {[%clk 0:02:20.6]} 17. Bd3
{[%clk 0:03:02.5]} 17... e4 {[%clk 0:02:13.8]} 18. Bc2 {[%clk 0:03:03.1]} 18...
Bf5 {[%clk 0:02:04.2]} 19. Bxd6 {[%clk 0:03:01.3]} 19... Rac8 {[%clk 0:02:00.3]}
20. Rb1 {[%clk 0:02:40.1]} 20... Qb6 {[%clk 0:01:54.3]} 21. Bg3 {[%clk
0:02:38.4]} 21... Ng6 {[%clk 0:01:55.3]} 22. Qe2 {[%clk 0:02:08.6]} 22... Ne5
{[%clk 0:01:48.3]} 23. Bxe5 {[%clk 0:02:07.5]} 23... Rxe5 {[%clk 0:01:48.8]} 24.
Nf1 {[%clk 0:02:09.4]} 24... Bg6 {[%clk 0:01:34]} 25. g4 {[%clk 0:02:09.1]}
25... Ne8 {[%clk 0:01:33]} 26. Ng3 {[%clk 0:02:09.2]} 26... Nd6 {[%clk
0:01:31.9]} 27. Na2 {[%clk 0:01:53.7]} 27... a5 {[%clk 0:01:26]} 28. b3 {[%clk
0:01:49.1]} 28... Rce8 {[%clk 0:01:26.5]} 29. Kf1 {[%clk 0:01:39.6]} 29... R5e7
{[%clk 0:01:27.7]} 30. Kg2 {[%clk 0:01:33.5]} 30... Qc7 {[%clk 0:01:18.6]} 31.
Qd2 {[%clk 0:01:21.9]} 31... b6 {[%clk 0:01:17.9]} 32. Nc3 {[%clk 0:01:22.8]}
32... Qd7 {[%clk 0:01:16.9]} 33. Bd1 {[%clk 0:01:18.3]} 33... Rf8 {[%clk
0:01:04.9]} 34. Nb5 {[%clk 0:01:17.9]} 34... Nxb5 {[%clk 0:01:04.6]} 35. axb5
{[%clk 0:01:19.8]} 35... Qd6 {[%clk 0:01:05.1]} 36. Nh5 {[%clk 0:01:15.3]} 36...
Bh8 {[%clk 0:01:03.4]} 37. Rh3 {[%clk 0:01:15.4]} 37... f5 {[%clk 0:01:03.7]}
38. gxf5 {[%clk 0:01:14.3]} 38... Bxf5 {[%clk 0:01:01.3]} 39. Rh2 {[%clk
0:01:14.7]} 39... g4 {[%clk 0:00:56.3]} 40. Ng3 {[%clk 0:01:11]} 40... Be5
{[%clk 0:00:52.9]} 41. Be2 {[%clk 0:01:11.9]} 41... Bxg3 {[%clk 0:00:46.4]} 42.
fxg3 {[%clk 0:01:12.6]} 42... Ref7 {[%clk 0:00:45.3]} 43. Rbh1 {[%clk
0:01:11.6]} 43... Bg6 {[%clk 0:00:46]} 44. Rh8+ {[%clk 0:01:10.3]} 44... Kg7
{[%clk 0:00:46.4]} 45. Qc3+ {[%clk 0:01:11]} 45... Qf6 {[%clk 0:00:45.1]} 46.
Qxf6+ {[%clk 0:01:12.1]} 46... Kxf6 {[%clk 0:00:46.2]} 47. Rxf8 {[%clk 0:01:13]}
47... Rxf8 {[%clk 0:00:47]} 48. Bxg4 {[%clk 0:01:13.9]} 48... Ke5 {[%clk
0:00:43]} 49. Rh6 {[%clk 0:01:11.9]} 49... Rf6 {[%clk 0:00:42.7]} 50. Be6 {[%clk
0:01:01.9]} 1-0

[Event "*** Titled Tuesday 3|2 Blitz"]
[Site "Chess.com"]
[Date "2015.02.24"]
[Round "2"]
[White "Aragon"]
[Black "FytNob"]
[Result "1-0"]
[WhiteElo "2028"]
[BlackElo "1858"]
[TimeControl "180+2"]
[EndTime "11:23:05 PST"]
[Termination "Aragon won by resignation"]

1. e4 {[%clk 0:03:00]} 1... c5 {[%clk 0:02:50.8]} 2. Nf3 {[%clk 0:02:57.6]} 2...
d6 {[%clk 0:02:51.8]} 3. Bb5+ {[%clk 0:02:56.1]} 3... Nd7 {[%clk 0:02:52.5]} 4.
O-O {[%clk 0:02:56]} 4... Nf6 {[%clk 0:02:53.4]} 5. Nc3 {[%clk 0:02:56.4]} 5...
e6 {[%clk 0:02:53.5]} 6. d4 {[%clk 0:02:57.1]} 6... a6 {[%clk 0:02:55]} 7. Bd3
{[%clk 0:02:50.8]} 7... Be7 {[%clk 0:02:47.7]} 8. e5 {[%clk 0:02:50.5]} 8...
dxe5 {[%clk 0:02:45.9]} 9. dxe5 {[%clk 0:02:52.4]} 9... Nd5 {[%clk 0:02:35.2]}
10. Nxd5 {[%clk 0:02:43.7]} 10... exd5 {[%clk 0:02:37.1]} 11. Re1 {[%clk
0:02:41.7]} 11... Nf8 {[%clk 0:02:34.4]} 12. c3 {[%clk 0:02:38.1]} 12... Ne6
{[%clk 0:02:30.8]} 13. Qc2 {[%clk 0:02:34.9]} 13... Qc7 {[%clk 0:02:16.3]} 14.
c4 {[%clk 0:02:35.1]} 14... d4 {[%clk 0:02:15.2]} 15. a3 {[%clk 0:02:31.1]}
15... b6 {[%clk 0:02:14.8]} 16. Rb1 {[%clk 0:02:30.6]} 16... Bb7 {[%clk
0:02:15.4]} 17. b4 {[%clk 0:02:23.6]} 17... Bxf3 {[%clk 0:02:14.6]} 18. gxf3
{[%clk 0:02:24.1]} 18... g6 {[%clk 0:02:11.9]} 19. Be4 {[%clk 0:02:21.7]} 19...
Rd8 {[%clk 0:02:10.2]} 20. Bh6 {[%clk 0:02:18.9]} 20... Bf8 {[%clk 0:02:10.3]}
21. Qa4+ {[%clk 0:02:16.8]} 21... Ke7 {[%clk 0:02:05.8]} 22. Bd2 {[%clk
0:01:56.1]} 22... Bg7 {[%clk 0:01:57.6]} 23. f4 {[%clk 0:01:52.2]} 23... Rhe8
{[%clk 0:01:54.3]} 24. Qxa6 {[%clk 0:01:43.6]} 24... Kf8 {[%clk 0:01:51.2]} 25.
Qb5 {[%clk 0:01:41]} 25... Bh6 {[%clk 0:01:42.5]} 26. Bc6 {[%clk 0:01:37.8]}
26... Re7 {[%clk 0:01:27.9]} 27. bxc5 {[%clk 0:01:38.4]} 27... bxc5 {[%clk
0:01:27.7]} 28. Ba5 {[%clk 0:01:34.4]} 28... Qa7 {[%clk 0:01:23.5]} 29. Bxd8
{[%clk 0:01:34.6]} 29... Nxd8 {[%clk 0:01:23.4]} 30. Qb8 {[%clk 0:01:28.9]}
30... Qc7 {[%clk 0:01:22.4]} 31. Rb7 {[%clk 0:01:17.7]} 31... Qxc6 {[%clk
0:01:10.7]} 32. Qxd8+ {[%clk 0:01:16]} 32... Qe8 {[%clk 0:01:11.8]} 33. Qb6
{[%clk 0:01:08.9]} 33... Rxb7 {[%clk 0:01:08.7]} 34. Qxb7 {[%clk 0:01:10]} 34...
Bxf4 {[%clk 0:01:08.8]} 35. Qe4 {[%clk 0:01:08.5]} 35... Bh6 {[%clk 0:00:57.6]}
36. e6 {[%clk 0:01:04.7]} 36... fxe6 {[%clk 0:00:50.1]} 37. Qxe6 {[%clk
0:01:04.7]} 37... Qxe6 {[%clk 0:00:48.3]} 38. Rxe6 {[%clk 0:01:04.5]} 38... Kf7
{[%clk 0:00:49.7]} 39. Rd6 {[%clk 0:01:04.4]} 39... Bf8 {[%clk 0:00:48.6]} 40.
Rd5 {[%clk 0:01:04.6]} 40... Ke6 {[%clk 0:00:38.7]} 41. a4 {[%clk 0:01:04.5]}
41... Bd6 {[%clk 0:00:37.8]} 42. a5 {[%clk 0:01:05.5]} 42... Bc7 {[%clk
0:00:32.9]} 43. a6 {[%clk 0:01:05.7]} 43... Bb6 {[%clk 0:00:33.7]} 44. Kf1
{[%clk 0:01:03.3]} 44... h6 {[%clk 0:00:28.4]} 45. Ke2 {[%clk 0:01:04.2]} 45...
Ba7 {[%clk 0:00:27.5]} 46. Kd3 {[%clk 0:01:04.7]} 46... Bb6 {[%clk 0:00:28.8]}
47. f3 {[%clk 0:01:05.1]} 47... g5 {[%clk 0:00:27.3]} 48. h3 {[%clk 0:01:06]}
48... Ba7 {[%clk 0:00:27.1]} 49. Kc2 {[%clk 0:01:06.8]} 49... Bb6 {[%clk
0:00:28.3]} 50. Kb3 {[%clk 0:01:07.8]} 50... Ba7 {[%clk 0:00:21.9]} 51. Ka4
{[%clk 0:01:08.5]} 51... Bb6 {[%clk 0:00:23.3]} 52. Kb5 {[%clk 0:01:09.4]} 52...
Ba7 {[%clk 0:00:24.4]} 53. Kc6 {[%clk 0:01:09.3]} 1-0

[Event "*** Titled Tuesday 3|2 Blitz"]
[Site "Chess.com"]
[Date "2015.02.24"]
[Round "2"]
[White "stepanosinovsky"]
[Black "monika84"]
[Result "1-0"]
[WhiteElo "2243"]
[BlackElo "2046"]
[TimeControl "180+2"]
[EndTime "11:23:11 PST"]
[Termination "stepanosinovsky won by resignation"]

1. e4 {[%clk 0:03:00]} 1... e5 {[%clk 0:02:57.7]} 2. Nf3 {[%clk 0:02:59]} 2...
Nc6 {[%clk 0:02:56.7]} 3. Bb5 {[%clk 0:02:58.5]} 3... a6 {[%clk 0:02:57.8]} 4.
Ba4 {[%clk 0:02:59.3]} 4... Nf6 {[%clk 0:02:58.6]} 5. O-O {[%clk 0:02:59.6]}
5... Be7 {[%clk 0:02:59.5]} 6. Re1 {[%clk 0:03:00.4]} 6... b5 {[%clk 0:03:00.5]}
7. Bb3 {[%clk 0:03:01.8]} 7... d6 {[%clk 0:03:01.2]} 8. Nc3 {[%clk 0:03:02]}
8... Na5 {[%clk 0:03:00.7]} 9. Nd5 {[%clk 0:03:00.8]} 9... Nxb3 {[%clk
0:02:58.7]} 10. axb3 {[%clk 0:02:58.1]} 10... Nxd5 {[%clk 0:02:58.4]} 11. exd5
{[%clk 0:02:58.6]} 11... O-O {[%clk 0:03:00.3]} 12. d4 {[%clk 0:02:49.3]} 12...
exd4 {[%clk 0:02:55.1]} 13. Nxd4 {[%clk 0:02:49.6]} 13... Bf6 {[%clk 0:02:56.4]}
14. Nc6 {[%clk 0:02:46.2]} 14... Qd7 {[%clk 0:02:57]} 15. c3 {[%clk 0:02:45.5]}
15... Bb7 {[%clk 0:02:53.1]} 16. Qf3 {[%clk 0:02:44.1]} 16... Rfe8 {[%clk
0:02:45.7]} 17. Bf4 {[%clk 0:02:37.5]} 17... Rxe1+ {[%clk 0:02:17.6]} 18. Rxe1
{[%clk 0:02:37.9]} 18... Re8 {[%clk 0:02:19.2]} 19. Rxe8+ {[%clk 0:02:34.5]}
19... Qxe8 {[%clk 0:02:21.1]} 20. Be3 {[%clk 0:02:35.2]} 20... Bxc6 {[%clk
0:02:05]} 21. dxc6 {[%clk 0:02:35.5]} 21... Qe6 {[%clk 0:02:06.6]} 22. h3 {[%clk
0:02:23.2]} 22... Qxb3 {[%clk 0:02:04.6]} 23. Bb6 {[%clk 0:01:04.9]} 23... Bd8
{[%clk 0:01:51.1]} 24. Bd4 {[%clk 0:01:04.2]} 24... Qe6 {[%clk 0:01:41.1]} 25.
Qg3 {[%clk 0:00:29]} 25... Bf6 {[%clk 0:01:37.1]} 26. Bxf6 {[%clk 0:00:29]}
26... Qxf6 {[%clk 0:01:39]} 27. Qe3 {[%clk 0:00:29.6]} 27... Qe5 {[%clk
0:00:45.5]} 28. Qa7 {[%clk 0:00:25.4]} 28... Qe1+ {[%clk 0:00:45.5]} 29. Kh2
{[%clk 0:00:26.1]} 29... Qe5+ {[%clk 0:00:47.4]} 30. Kg1 {[%clk 0:00:26.3]}
30... Qe1+ {[%clk 0:00:38.2]} 31. Kh2 {[%clk 0:00:27.3]} 31... Qe5+ {[%clk
0:00:39.6]} 32. g3 {[%clk 0:00:29]} 32... g6 {[%clk 0:00:16.9]} 33. Qxc7 {[%clk
0:00:28.9]} 33... Qe2 {[%clk 0:00:14.2]} 34. Qa7 {[%clk 0:00:27.2]} 34... Qxb2
{[%clk 0:00:14.4]} 35. c7 {[%clk 0:00:27.7]} 35... Qxc3 {[%clk 0:00:13]} 36.
Qa8+ {[%clk 0:00:27]} 36... Kg7 {[%clk 0:00:14.6]} 37. c8=Q {[%clk 0:00:28.4]}
37... Qd4 {[%clk 0:00:15.2]} 38. Qh8+ {[%clk 0:00:27.4]} 38... Kh6 {[%clk
0:00:16.8]} 39. Qxd4 {[%clk 0:00:27.9]} 1-0